[Event "FIDE World Junior U20-ch Girls 2025"]
[Site "Petrovac"]
[Date "2025.02.28"]
[Round "4.11"]
[White "Tashkinova, Sofiia"]
[Black "Song, Yuxin"]
[Result "0-1"]
[Annotator "ChessBase"]
[ECO "B32"]
[WhiteElo "2197"]
[BlackElo "2381"]
[PlyCount "94"]
[EventDate "2025.02.23"]
[EventType "swiss"]
[EventCountry "MNE"]
[SourceTitle "playchess.com"]
[Source "ChessBase"]
[SourceQuality "1"]
[TimeControl "40/5400+30:1800+30"]

1. e4 {[%emt 0:01:01]} c5 {[%emt 0:00:04]} 2. Nf3 {[%emt 0:00:05]} g6 {[%emt 0:00:06]} 3. d4 {[%emt 0:02:28]} cxd4 {[%emt 0:00:03]} 4. Nxd4 {[%emt 0:01:02]} Nc6 {[%emt 0:00:06]} 5. Be3 {[%emt 0:02:26]} Nf6 {[%emt 0:00:24]} 6. Bd3 {[%emt 0:05:25]} Bg7 {[%emt 0:01:20]} 7. c4 {[%emt 0:01:41]} Ne5 {[%emt 0:09:59]} 8. h3 {[%emt 0:05:52]} O-O {[%emt 0:07:34]} 9. Nc3 {[%emt 0:01:24]} e6 {[%emt 0:05:51]} 10. Be2 {[%emt 0:03:30]} d5 {[%emt 0:00:44]} 11. cxd5 {[%emt 0:01:30]} exd5 {[%emt 0:00:06]} 12. f4 {[%emt 0:00:56]} Nc4 {[%emt 0:01:12]} 13. Bxc4 {[%emt 0:01:40]} dxc4 {[%emt 0:00:02]} 14. e5 {[%emt 0:06:01]} Nd5 {[%emt 0:06:06]} 15. Nxd5 {[%emt 0:01:35]} Qxd5 {[%emt 0:00:03]} 16. O-O {[%emt 0:01:51]} a6 {[%emt 0:08:55]} 17. a4 {[%emt 0:05:14]} Re8 {[%emt 0:06:06]} 18. Nf3 {[%emt 0:04:00]} Qe4 {[%emt 0:03:48]} 19. Qd4 {[%emt 0:05:40]} Bf5 {[%emt 0:01:10]} 20. Rfe1 {[%emt 0:09:42]} Rac8 {[%emt 0:07:00]} 21. a5 {[%emt 0:03:07]} Qc6 {[%emt 0:01:16]} 22. Qc3 {[%emt 0:03:01]} Bxh3 {[%emt 0:00:24]} 23. Rad1 {[%emt 0:01:23]} Bg4 {[%emt 0:01:15]} 24. Kf2 {[%emt 0:04:48]} Red8 {[%emt 0:04:57]} 25. Bb6 {[%emt 0:01:37]} Rd5 {[%emt 0:01:44]} 26. Rxd5 {[%emt 0:01:21]} Qxd5 {[%emt 0:00:02]} 27. Re2 {[%emt 0:01:02]} Bf8 {[%emt 0:06:27]} 28. Rd2 {[%emt 0:01:11]} Qb5 {[%emt 0:00:06]} 29. Kg3 {[%emt 0:03:42]} Bb4 {[%emt 0:01:05]} 30. Qd4 {[%emt 0:02:24]} Bxf3 {[%emt 0:00:17]} 31. gxf3 {[%emt 0:01:03]} Bxd2 {[%emt 0:00:06]} 32. Qxd2 {[%emt 0:00:05]} Qe8 {[%emt 0:05:07]} 33. Qd4 {[%emt 0:01:32]} Qe7 {[%emt 0:02:01]} 34. Qd6 {[%emt 0:01:45]} Re8 {[%emt 0:01:29]} 35. Qd5 {[%emt 0:00:25]} g5 {[%emt 0:01:41]} 36. Bc5 {[%emt 0:02:41]} gxf4+ {[%emt 0:00:27]} 37. Kxf4 {[%emt 0:00:35]} Qe6 {[%emt 0:01:15]} 38. Qd4 {[%emt 0:00:44]} Kh8 {[%emt 0:01:28]} 39. Bb6 {[%emt 0:01:11]} Qh6+ {[%emt 0:00:56]} 40. Ke4 {[%emt 0:00:55]} f5+ {[%emt 0:02:35]} 41. Kxf5 {[%emt 0:31:01]} Rf8+ {[%emt 0:30:07]} 42. Kg4 {[%emt 0:00:20]} Qg7+ {[%emt 0:00:27]} 43. Kh4 {[%emt 0:03:17]} Rxf3 {[%emt 0:00:07]} 44. Qd8+ {[%emt 0:00:59]} Rf8 {[%emt 0:01:21]} 45. Qg5 {[%emt 0:01:27]} Qxg5+ {[%emt 0:00:28]} 46. Kxg5 {[%emt 0:00:06]} Kg7 {[%emt 0:00:04]} 47. e6 {[%emt 0:00:34]} h6+ {[%emt 0:00:04]} 0-1

[Event "FIDE World Junior U20-ch Girls 2025"]
[Site "Petrovac"]
[Date "2025.02.28"]
[Round "4.12"]
[White "Wang, Qinxuanyi"]
[Black "Shukhman, Anna"]
[Result "1/2-1/2"]
[Annotator "ChessBase"]
[ECO "E12"]
[WhiteElo "2165"]
[BlackElo "2365"]
[PlyCount "75"]
[EventDate "2025.02.23"]
[EventType "swiss"]
[EventCountry "MNE"]
[SourceTitle "playchess.com"]
[Source "ChessBase"]
[SourceQuality "1"]
[TimeControl "40/5400+30:1800+30"]

1. d4 {[%emt 0:00:04]} e6 {[%emt 0:00:02]} 2. c4 {[%emt 0:00:08]} b6 {[%emt 0:00:02]} 3. Nf3 {[%emt 0:01:11]} Bb7 {[%emt 0:00:03]} 4. a3 {[%emt 0:02:00]} Nf6 {[%emt 0:07:27]} 5. Nc3 {[%emt 0:00:09]} d5 {[%emt 0:00:25]} 6. cxd5 {[%emt 0:00:05]} Nxd5 {[%emt 0:02:21]} 7. Qc2 {[%emt 0:01:21]} Be7 {[%emt 0:11:44]} 8. e4 {[%emt 0:00:15]} Nxc3 {[%emt 0:00:02]} 9. bxc3 {[%emt 0:00:05]} O-O {[%emt 0:01:09]} 10. Bd3 {[%emt 0:00:19]} c5 {[%emt 0:02:32]} 11. O-O {[%emt 0:01:41]} Nd7 {[%emt 0:01:44]} 12. Bf4 {[%emt 0:05:52]} Rc8 {[%emt 0:05:49]} 13. Qe2 {[%emt 0:00:06]} cxd4 {[%emt 0:08:13]} 14. cxd4 {[%emt 0:00:05]} Nf6 {[%emt 0:00:02]} 15. a4 {[%emt 0:10:00]} Rc3 {[%emt 0:11:03]} 16. Rfc1 {[%emt 0:06:15]} Rxc1+ {[%emt 0:05:34]} 17. Rxc1 {[%emt 0:00:07]} Qa8 {[%emt 0:00:01]} 18. Nd2 {[%emt 0:14:25]} Rc8 {[%emt 0:04:47]} 19. Re1 {[%emt 0:06:13]} Rd8 {[%emt 0:01:52]} 20. Be5 {[%emt 0:04:57]} Qc8 {[%emt 0:06:16]} 21. h3 {[%emt 0:08:59]} Bb4 {[%emt 0:05:57]} 22. Rd1 {[%emt 0:06:45]} Bxd2 {[%emt 0:06:14]} 23. Rxd2 {[%emt 0:03:50]} Qc6 {[%emt 0:04:45]} 24. f3 {[%emt 0:02:42]} a6 {[%emt 0:04:08]} 25. Rc2 {[%emt 0:03:53]} Qxa4 {[%emt 0:00:41]} 26. Ra2 {[%emt 0:00:35]} Qc6 {[%emt 0:05:09]} 27. Bxa6 {[%emt 0:03:10]} Bxa6 {[%emt 0:00:21]} 28. Qxa6 {[%emt 0:01:24]} Ne8 {[%emt 0:00:35]} 29. Qa4 {[%emt 0:01:39]} b5 {[%emt 0:02:33]} 30. Qb4 {[%emt 0:00:48]} f6 {[%emt 0:01:31]} 31. Bg3 {[%emt 0:02:11]} Qc4 {[%emt 0:00:10]} 32. Qxc4 {[%emt 0:02:07]} bxc4 {[%emt 0:00:03]} 33. Rc2 {[%emt 0:00:36]} Rxd4 {[%emt 0:00:37]} 34. Bf2 {[%emt 0:00:02]} Rd1+ {[%emt 0:00:22]} 35. Kh2 {[%emt 0:00:02]} Nd6 {[%emt 0:00:19]} 36. Bc5 {[%emt 0:00:03]} Kf7 {[%emt 0:00:27]} 37. Bxd6 {[%emt 0:00:09]} Rxd6 {[%emt 0:00:18]} 38. Rxc4 {[%emt 0:00:03]} 1/2-1/2

[Event "FIDE World Junior U20-ch Girls 2025"]
[Site "Petrovac"]
[Date "2025.02.28"]
[Round "4.13"]
[White "Nurgaliyeva, Zarina"]
[Black "Karimova, Guldona"]
[Result "1-0"]
[Annotator "ChessBase"]
[ECO "B40"]
[WhiteElo "2265"]
[BlackElo "2200"]
[PlyCount "117"]
[EventDate "2025.02.23"]
[EventType "swiss"]
[EventCountry "MNE"]
[SourceTitle "playchess.com"]
[Source "ChessBase"]
[SourceQuality "1"]
[TimeControl "40/5400+30:1800+30"]

1. e4 {[%emt 0:00:03]} c5 {[%emt 0:00:08]} 2. Nf3 {[%emt 0:00:06]} e6 {[%emt 0:00:06]} 3. c3 {[%emt 0:00:05]} Nf6 {[%emt 0:00:14]} 4. e5 {[%emt 0:00:21]} Nd5 {[%emt 0:00:07]} 5. d4 {[%emt 0:00:05]} cxd4 {[%emt 0:00:12]} 6. cxd4 {[%emt 0:00:12]} b6 {[%emt 0:01:02]} 7. Bc4 {[%emt 0:01:36]} Ba6 {[%emt 0:04:16]} 8. Nbd2 {[%emt 0:05:30]} Qc8 {[%emt 0:13:35]} 9. b3 {[%emt 0:08:52]} b5 {[%emt 0:03:58]} 10. Bxd5 {[%emt 0:05:55]} exd5 {[%emt 0:00:02]} 11. O-O {[%emt 0:00:15]} b4 {[%emt 0:01:02]} 12. Re1 {[%emt 0:00:23]} Be7 {[%emt 0:06:21]} 13. Nf1 {[%emt 0:03:11]} Qc6 {[%emt 0:08:04]} 14. Bg5 {[%emt 0:05:00]} Bxf1 {[%emt 0:14:40]} 15. Rxf1 {[%emt 0:00:32]} Bxg5 {[%emt 0:15:36]} 16. Nxg5 {[%emt 0:00:06]} O-O {[%emt 0:00:05]} 17. Qf3 {[%emt 0:05:10]} h6 {[%emt 0:11:11]} 18. Rac1 {[%emt 0:20:08]} Qb7 {[%emt 0:01:03]} 19. Nh3 {[%emt 0:00:23]} Na6 {[%emt 0:01:51]} 20. Qg4 {[%emt 0:00:53]} f6 {[%emt 0:06:30]} 21. Nf4 {[%emt 0:06:25]} fxe5 {[%emt 0:00:22]} 22. dxe5 {[%emt 0:00:09]} Rf7 {[%emt 0:01:28]} 23. Nd3 {[%emt 0:07:23]} Qb6 {[%emt 0:00:26]} 24. Kh1 {[%emt 0:03:32]} Re8 {[%emt 0:02:39]} 25. Rfd1 {[%emt 0:02:14]} d6 {[%emt 0:02:23]} 26. Rc8 {[%emt 0:07:37]} Rxc8 {[%emt 0:02:10]} 27. Qxc8+ {[%emt 0:00:06]} Rf8 {[%emt 0:00:24]} 28. Qe6+ {[%emt 0:00:06]} Kh7 {[%emt 0:00:07]} 29. Qe7 {[%emt 0:02:40]} Rc8 {[%emt 0:02:56]} 30. Qd7 {[%emt 0:03:36]} Rc7 {[%emt 0:01:47]} 31. Qf5+ {[%emt 0:01:16]} g6 {[%emt 0:00:00]} 32. Qf3 {[%emt 0:05:04]} dxe5 {[%emt 0:00:28]} 33. Qxd5 {[%emt 0:01:41]} Qd4 {[%emt 0:00:58]} 34. Qxe5 {[%emt 0:00:34]} Qxe5 {[%emt 0:00:45]} 35. Nxe5 {[%emt 0:00:01]} Rc2 {[%emt 0:00:24]} 36. Rd7+ {[%emt 0:01:06]} Kg8 {[%emt 0:00:01]} 37. h3 {[%emt 0:00:27]} Rxf2 {[%emt 0:01:08]} 38. Rxa7 {[%emt 0:00:23]} Rxa2 {[%emt 0:00:11]} 39. Nc6 {[%emt 0:00:28]} Ra3 {[%emt 0:00:40]} 40. Nxb4 {[%emt 0:00:20]} Rxb3 {[%emt 0:00:10]} 41. Nxa6 {[%emt 0:30:07]} Ra3 {[%emt 0:30:04]} 42. Ra8+ {[%emt 0:00:05]} Kf7 {[%emt 0:00:07]} 43. Nc7 {[%emt 0:00:08]} Rc3 {[%emt 0:00:11]} 44. Nd5 {[%emt 0:00:08]} Rb3 {[%emt 0:00:25]} 45. Ra6 {[%emt 0:00:07]} Rg3 {[%emt 0:01:58]} 46. Kh2 {[%emt 0:00:08]} Rg5 {[%emt 0:00:15]} 47. Nf4 {[%emt 0:00:20]} h5 {[%emt 0:00:32]} 48. g3 {[%emt 0:00:22]} Rb5 {[%emt 0:00:56]} 49. Nxg6 {[%emt 0:00:41]} Rb2+ {[%emt 0:00:05]} 50. Kg1 {[%emt 0:00:06]} Rb3 {[%emt 0:00:18]} 51. Kf2 {[%emt 0:00:05]} Rb2+ {[%emt 0:00:04]} 52. Kf3 {[%emt 0:00:12]} Rb3+ {[%emt 0:00:07]} 53. Kf4 {[%emt 0:00:06]} Kg7 {[%emt 0:00:17]} 54. Ne5 {[%emt 0:00:06]} h4 {[%emt 0:00:10]} 55. gxh4 {[%emt 0:00:42]} Rxh3 {[%emt 0:00:02]} 56. Kg5 {[%emt 0:00:06]} Rg3+ {[%emt 0:00:13]} 57. Ng4 {[%emt 0:00:04]} Rb3 {[%emt 0:00:17]} 58. Ra7+ {[%emt 0:00:09]} Kh8 {[%emt 0:01:56]} 59. Kg6 {[%emt 0:00:24]} 1-0

[Event "FIDE World Junior U20-ch Girls 2025"]
[Site "Petrovac"]
[Date "2025.02.28"]
[Round "4.14"]
[White "Nguyen Thien Ngan"]
[Black "Balabayeva, Xeniya"]
[Result "0-1"]
[Annotator "ChessBase"]
[ECO "B12"]
[WhiteElo "1923"]
[BlackElo "2264"]
[PlyCount "158"]
[EventDate "2025.02.23"]
[EventType "swiss"]
[EventCountry "MNE"]
[SourceTitle "playchess.com"]
[Source "ChessBase"]
[SourceQuality "1"]
[TimeControl "40/5400+30:1800+30"]

1. e4 {[%emt 0:00:04]} c6 {[%emt 0:00:08]} 2. d4 {[%emt 0:00:08]} d5 {[%emt 0:00:05]} 3. e5 {[%emt 0:00:08]} Bf5 {[%emt 0:00:07]} 4. Nd2 {[%emt 0:00:08]} e6 {[%emt 0:03:32]} 5. Nb3 {[%emt 0:00:09]} Nd7 {[%emt 0:01:39]} 6. Nf3 {[%emt 0:00:09]} h6 {[%emt 0:01:03]} 7. Be2 {[%emt 0:00:08]} Ne7 {[%emt 0:15:03]} 8. O-O {[%emt 0:00:16]} Bh7 {[%emt 0:06:31]} 9. Ne1 {[%emt 0:04:27]} Nf5 {[%emt 0:10:11]} 10. f4 {[%emt 0:10:11]} Be7 {[%emt 0:03:32]} 11. a4 {[%emt 0:09:10]} O-O {[%emt 0:01:16]} 12. Nd3 {[%emt 0:13:48]} b6 {[%emt 0:05:22]} 13. Nf2 {[%emt 0:12:15]} c5 {[%emt 0:05:58]} 14. c3 {[%emt 0:06:32]} c4 {[%emt 0:10:18]} 15. g4 {[%emt 0:00:32]} Nh4 {[%emt 0:10:28]} 16. Nd2 {[%emt 0:01:00]} f5 {[%emt 0:00:06]} 17. Nf3 {[%emt 0:07:56]} fxg4 {[%emt 0:06:38]} 18. Nxh4 {[%emt 0:02:01]} Bxh4 {[%emt 0:00:03]} 19. Nxg4 {[%emt 0:06:56]} Be4 {[%emt 0:06:58]} 20. Ne3 {[%emt 0:09:54]} Rc8 {[%emt 0:08:25]} 21. Bg4 {[%emt 0:02:29]} Qe8 {[%emt 0:01:32]} 22. Bh5 {[%emt 0:04:08]} Bg6 {[%emt 0:01:08]} 23. Bxg6 {[%emt 0:05:29]} Qxg6+ {[%emt 0:00:01]} 24. Qg4 {[%emt 0:00:01]} Qxg4+ {[%emt 0:00:34]} 25. Nxg4 {[%emt 0:00:02]} h5 {[%emt 0:00:12]} 26. Ne3 {[%emt 0:00:36]} g6 {[%emt 0:00:04]} 27. Kg2 {[%emt 0:03:20]} Bd8 {[%emt 0:00:40]} 28. Rb1 {[%emt 0:00:59]} Nb8 {[%emt 0:00:06]} 29. b3 {[%emt 0:00:15]} cxb3 {[%emt 0:00:09]} 30. Rxb3 {[%emt 0:00:02]} Nc6 {[%emt 0:00:40]} 31. Ba3 {[%emt 0:00:54]} Rf7 {[%emt 0:00:29]} 32. Bb4 {[%emt 0:01:22]} Nxb4 {[%emt 0:02:57]} 33. cxb4 {[%emt 0:00:02]} Rfc7 {[%emt 0:00:09]} 34. Kf3 {[%emt 0:01:20]} Rc1 {[%emt 0:00:30]} 35. Rxc1 {[%emt 0:00:33]} Rxc1 {[%emt 0:00:02]} 36. a5 {[%emt 0:00:31]} bxa5 {[%emt 0:01:15]} 37. bxa5 {[%emt 0:00:07]} Bxa5 {[%emt 0:00:06]} 38. Rb8+ {[%emt 0:00:11]} Kf7 {[%emt 0:00:18]} 39. Rh8 {[%emt 0:00:08]} Bb6 {[%emt 0:00:32]} 40. Rh7+ {[%emt 0:01:12]} Kf8 {[%emt 0:00:50]} 41. Ng2 {[%emt 0:30:46]} Rf1+ {[%emt 0:11:10]} 42. Ke2 {[%emt 0:00:00]} Rg1 {[%emt 0:00:56]} 43. Nh4 {[%emt 0:00:00]} Rg4 {[%emt 0:12:36]} 44. Nf3 {[%emt 0:00:00]} Rxf4 {[%emt 0:04:03]} 45. Ng5 {[%emt 0:00:00]} Rxd4 {[%emt 0:00:37]} 46. Rf7+ {[%emt 0:00:00]} Ke8 {[%emt 0:02:16]} 47. Rf6 {[%emt 0:00:00]} Rh4 {[%emt 0:02:11]} 48. Rxe6+ {[%emt 0:00:00]} Kd7 {[%emt 0:00:27]} 49. Rd6+ {[%emt 0:00:00]} Kc8 {[%emt 0:00:20]} 50. e6 {[%emt 0:00:00]} Bd8 {[%emt 0:00:10]} 51. Nf3 {[%emt 0:00:00]} Re4+ {[%emt 0:00:04]} 52. Kd3 {[%emt 0:00:00]} Bc7 {[%emt 0:00:40]} 53. Rxd5 {[%emt 0:01:32]} Rxe6 {[%emt 0:00:02]} 54. Rb5 {[%emt 0:00:29]} Bb6 {[%emt 0:00:51]} 55. Nh4 {[%emt 0:03:14]} Kd7 {[%emt 0:00:47]} 56. Rd5+ {[%emt 0:00:48]} Ke7 {[%emt 0:00:10]} 57. Rg5 {[%emt 0:00:25]} Kf7 {[%emt 0:00:09]} 58. Rg3 {[%emt 0:00:20]} Bf2 {[%emt 0:01:04]} 59. Rf3+ {[%emt 0:01:06]} Rf6 {[%emt 0:00:01]} 60. Rxf6+ {[%emt 0:00:16]} Kxf6 {[%emt 0:00:01]} 61. Nf3 {[%emt 0:00:19]} Kf5 {[%emt 0:00:16]} 62. Ke2 {[%emt 0:00:07]} Bb6 {[%emt 0:00:17]} 63. Kf1 {[%emt 0:00:36]} a5 {[%emt 0:00:34]} 64. Ne1 {[%emt 0:00:39]} a4 {[%emt 0:00:09]} 65. Nc2 {[%emt 0:00:06]} Bc7 {[%emt 0:00:14]} 66. Kg2 {[%emt 0:00:14]} Be5 {[%emt 0:00:04]} 67. Na3 {[%emt 0:00:37]} Bb2 {[%emt 0:00:10]} 68. Nc4 {[%emt 0:00:17]} a3 {[%emt 0:00:04]} 69. Nxa3 {[%emt 0:00:23]} Bxa3 {[%emt 0:00:04]} 70. Kh1 {[%emt 0:00:16]} Kg4 {[%emt 0:00:14]} 71. Kg2 {[%emt 0:00:08]} Bd6 {[%emt 0:00:04]} 72. Kg1 {[%emt 0:00:15]} Kh3 {[%emt 0:00:04]} 73. Kh1 {[%emt 0:00:06]} g5 {[%emt 0:00:03]} 74. Kg1 {[%emt 0:00:05]} Bxh2+ {[%emt 0:00:03]} 75. Kh1 {[%emt 0:00:05]} Bd6 {[%emt 0:00:05]} 76. Kg1 {[%emt 0:00:06]} g4 {[%emt 0:00:03]} 77. Kh1 {[%emt 0:00:05]} g3 {[%emt 0:00:05]} 78. Kg1 {[%emt 0:00:03]} Bc5+ {[%emt 0:00:04]} 79. Kh1 {[%emt 0:00:05]} g2# {[%emt 0:00:31]} 0-1

[Event "FIDE World Junior U20-ch Girls 2025"]
[Site "Petrovac"]
[Date "2025.02.28"]
[Round "4.15"]
[White "Mikheeva, Galina"]
[Black "Kanyamarala, Trisha"]
[Result "1/2-1/2"]
[Annotator "ChessBase"]
[ECO "B23"]
[WhiteElo "2238"]
[BlackElo "2178"]
[PlyCount "107"]
[EventDate "2025.02.23"]
[EventType "swiss"]
[EventCountry "MNE"]
[SourceTitle "playchess.com"]
[Source "ChessBase"]
[SourceQuality "1"]
[TimeControl "40/5400+30:1800+30"]

1. e4 {[%emt 0:00:02]} c5 {[%emt 0:00:10]} 2. Nc3 {[%emt 0:00:13]} e6 {[%emt 0:00:54]} 3. f4 {[%emt 0:03:59]} d5 {[%emt 0:02:40]} 4. Bb5+ {[%emt 0:19:58]} Bd7 {[%emt 0:03:43]} 5. Be2 {[%emt 0:05:16]} dxe4 {[%emt 0:06:57]} 6. Nxe4 {[%emt 0:00:10]} Bc6 {[%emt 0:01:06]} 7. Bf3 {[%emt 0:00:24]} Nf6 {[%emt 0:02:06]} 8. Qe2 {[%emt 0:01:42]} Be7 {[%emt 0:13:47]} 9. d3 {[%emt 0:02:52]} O-O {[%emt 0:02:10]} 10. Nh3 {[%emt 0:05:24]} Qb6 {[%emt 0:04:49]} 11. Nhf2 {[%emt 0:01:42]} Nbd7 {[%emt 0:10:17]} 12. O-O {[%emt 0:01:15]} Nd5 {[%emt 0:02:53]} 13. c4 {[%emt 0:16:58]} Nc7 {[%emt 0:04:01]} 14. Be3 {[%emt 0:14:51]} f5 {[%emt 0:02:00]} 15. Nd2 {[%emt 0:01:49]} Bf6 {[%emt 0:06:44]} 16. Rab1 {[%emt 0:01:57]} a5 {[%emt 0:01:59]} 17. Bxc6 {[%emt 0:04:31]} Qxc6 {[%emt 0:01:19]} 18. Qf3 {[%emt 0:00:20]} Qa6 {[%emt 0:07:51]} 19. Qh3 {[%emt 0:00:45]} g6 {[%emt 0:05:01]} 20. Nf3 {[%emt 0:01:48]} Qc6 {[%emt 0:03:25]} 21. d4 {[%emt 0:04:09]} cxd4 {[%emt 0:04:46]} 22. Nxd4 {[%emt 0:00:01]} Qa6 {[%emt 0:00:49]} 23. Nf3 {[%emt 0:02:07]} Rad8 {[%emt 0:03:51]} 24. b3 {[%emt 0:00:46]} e5 {[%emt 0:00:44]} 25. fxe5 {[%emt 0:00:22]} Nxe5 {[%emt 0:00:07]} 26. Nxe5 {[%emt 0:00:20]} Bxe5 {[%emt 0:00:05]} 27. Rbd1 {[%emt 0:04:51]} Ne6 {[%emt 0:01:09]} 28. Nd3 {[%emt 0:02:16]} Bg7 {[%emt 0:01:49]} 29. Nc5 {[%emt 0:01:05]} Nxc5 {[%emt 0:00:51]} 30. Bxc5 {[%emt 0:00:01]} Rfe8 {[%emt 0:00:08]} 31. Qf3 {[%emt 0:00:34]} b5 {[%emt 0:00:56]} 32. cxb5 {[%emt 0:01:35]} Qxb5 {[%emt 0:00:06]} 33. Bf2 {[%emt 0:00:16]} a4 {[%emt 0:02:34]} 34. bxa4 {[%emt 0:00:28]} Qxa4 {[%emt 0:00:10]} 35. Qb3+ {[%emt 0:01:23]} Qxb3 {[%emt 0:00:04]} 36. axb3 {[%emt 0:00:03]} Rxd1 {[%emt 0:04:29]} 37. Rxd1 {[%emt 0:00:01]} Rb8 {[%emt 0:00:09]} 38. Rb1 {[%emt 0:01:13]} Bc3 {[%emt 0:00:45]} 39. Kf1 {[%emt 0:00:23]} Kf7 {[%emt 0:00:27]} 40. Ke2 {[%emt 0:00:44]} Ke6 {[%emt 0:00:38]} 41. Kd3 {[%emt 0:31:38]} Be5 {[%emt 0:30:59]} 42. h3 {[%emt 0:00:00]} Rd8+ {[%emt 0:00:00]} 43. Ke2 {[%emt 0:00:00]} Rc8 {[%emt 0:00:00]} 44. b4 {[%emt 0:00:00]} Kd5 {[%emt 0:00:00]} 45. b5 {[%emt 0:00:00]} Rc2+ {[%emt 0:00:00]} 46. Kf1 {[%emt 0:00:00]} Bb8 {[%emt 0:00:00]} 47. Rd1+ {[%emt 0:00:00]} Ke6 {[%emt 0:00:00]} 48. b6 {[%emt 0:00:00]} Rb2 {[%emt 0:00:00]} 49. Bd4 {[%emt 0:00:00]} Rb3 {[%emt 0:00:00]} 50. Ke2 {[%emt 0:00:00]} Be5 {[%emt 0:00:00]} 51. Bf2 {[%emt 0:00:00]} Rb2+ {[%emt 0:00:00]} 52. Rd2 {[%emt 0:01:16]} Rb3 {[%emt 0:00:00]} 53. Rd3 {[%emt 0:01:14]} Rb2+ {[%emt 0:00:00]} 54. Rd2 {[%emt 0:00:33]} 1/2-1/2

[Event "FIDE World Junior U20-ch Girls 2025"]
[Site "Petrovac"]
[Date "2025.02.28"]
[Round "4.16"]
[White "Zhapova, Yana"]
[Black "Yildiz, Elif Zeren"]
[Result "1-0"]
[Annotator "ChessBase"]
[ECO "B95"]
[WhiteElo "2234"]
[BlackElo "2160"]
[PlyCount "77"]
[EventDate "2025.02.23"]
[EventType "swiss"]
[EventCountry "MNE"]
[SourceTitle "playchess.com"]
[Source "ChessBase"]
[SourceQuality "1"]
[TimeControl "40/5400+30:1800+30"]

1. e4 {[%emt 0:00:04]} c5 {[%emt 0:00:18]} 2. Nf3 {[%emt 0:00:08]} d6 {[%emt 0:00:04]} 3. d4 {[%emt 0:00:09]} cxd4 {[%emt 0:00:06]} 4. Nxd4 {[%emt 0:00:04]} Nf6 {[%emt 0:00:09]} 5. Nc3 {[%emt 0:00:08]} a6 {[%emt 0:00:06]} 6. Bg5 {[%emt 0:00:11]} e6 {[%emt 0:00:19]} 7. Qf3 {[%emt 0:00:08]} Nbd7 {[%emt 0:06:20]} 8. O-O-O {[%emt 0:00:55]} Qc7 {[%emt 0:03:09]} 9. a3 {[%emt 0:02:49]} b5 {[%emt 0:08:46]} 10. Bxf6 {[%emt 0:01:01]} Nxf6 {[%emt 0:10:25]} 11. g4 {[%emt 0:00:36]} Bb7 {[%emt 0:03:45]} 12. g5 {[%emt 0:05:43]} Nd7 {[%emt 0:00:30]} 13. Qe3 {[%emt 0:09:28]} Rc8 {[%emt 0:11:51]} 14. h4 {[%emt 0:02:34]} Nb6 {[%emt 0:06:34]} 15. Rh3 {[%emt 0:10:16]} e5 {[%emt 0:11:52]} 16. Nb3 {[%emt 0:02:55]} Na4 {[%emt 0:14:56]} 17. Qd2 {[%emt 0:02:03]} Nxc3 {[%emt 0:04:36]} 18. Rxc3 {[%emt 0:00:06]} Qd8 {[%emt 0:00:30]} 19. Bh3 {[%emt 0:05:46]} Rc7 {[%emt 0:05:07]} 20. f4 {[%emt 0:03:14]} exf4 {[%emt 0:05:22]} 21. e5 {[%emt 0:08:57]} d5 {[%emt 0:00:41]} 22. Rxc7 {[%emt 0:07:46]} Qxc7 {[%emt 0:00:07]} 23. Qxf4 {[%emt 0:00:21]} Be7 {[%emt 0:02:34]} 24. Nd4 {[%emt 0:03:18]} O-O {[%emt 0:01:35]} 25. Rf1 {[%emt 0:02:47]} g6 {[%emt 0:01:58]} 26. h5 {[%emt 0:02:22]} Qd8 {[%emt 0:00:56]} 27. Rg1 {[%emt 0:00:34]} Qb6 {[%emt 0:00:47]} 28. Kb1 {[%emt 0:03:30]} Bc5 {[%emt 0:00:32]} 29. Rd1 {[%emt 0:00:28]} Bxd4 {[%emt 0:00:14]} 30. Rxd4 {[%emt 0:00:20]} Re8 {[%emt 0:00:25]} 31. hxg6 {[%emt 0:00:38]} Qxg6 {[%emt 0:00:34]} 32. Bd7 {[%emt 0:06:50]} Rf8 {[%emt 0:00:42]} 33. Rd2 {[%emt 0:00:59]} Bc8 {[%emt 0:00:39]} 34. Rxd5 {[%emt 0:00:35]} Bxd7 {[%emt 0:00:28]} 35. Rxd7 {[%emt 0:00:03]} Rc8 {[%emt 0:00:06]} 36. Rd2 {[%emt 0:01:07]} Qc6 {[%emt 0:00:56]} 37. Qf5 {[%emt 0:01:49]} Re8 {[%emt 0:00:21]} 38. Rd6 {[%emt 0:08:43]} Qh1+ {[%emt 0:00:00]} 39. Ka2 {[%emt 0:00:00]} 1-0

[Event "FIDE World Junior U20-ch Girls 2025"]
[Site "Petrovac"]
[Date "2025.02.28"]
[Round "4.17"]
[White "Ter-Avetisjana, Agnesa Stepania"]
[Black "Wang, Chuqiao"]
[Result "1/2-1/2"]
[Annotator "ChessBase"]
[ECO "C77"]
[WhiteElo "2133"]
[BlackElo "2227"]
[PlyCount "97"]
[EventDate "2025.02.23"]
[EventType "swiss"]
[EventCountry "MNE"]
[SourceTitle "playchess.com"]
[Source "ChessBase"]
[SourceQuality "1"]
[TimeControl "40/5400+30:1800+30"]

1. e4 {[%emt 0:01:15]} e5 {[%emt 0:00:14]} 2. Nf3 {[%emt 0:00:07]} Nc6 {[%emt 0:00:06]} 3. Bb5 {[%emt 0:00:08]} a6 {[%emt 0:00:06]} 4. Ba4 {[%emt 0:00:06]} Nf6 {[%emt 0:00:05]} 5. Nc3 {[%emt 0:00:10]} b5 {[%emt 0:03:19]} 6. Bb3 {[%emt 0:00:15]} Bc5 {[%emt 0:02:38]} 7. Nd5 {[%emt 0:00:27]} d6 {[%emt 0:02:14]} 8. c3 {[%emt 0:01:31]} h6 {[%emt 0:10:39]} 9. d4 {[%emt 0:07:20]} Ba7 {[%emt 0:11:09]} 10. Nxf6+ {[%emt 0:12:38]} Qxf6 {[%emt 0:01:12]} 11. Bd5 {[%emt 0:01:42]} Bd7 {[%emt 0:02:44]} 12. a4 {[%emt 0:01:55]} O-O {[%emt 0:02:21]} 13. O-O {[%emt 0:02:57]} Bb6 {[%emt 0:16:28]} 14. Be3 {[%emt 0:10:03]} Rad8 {[%emt 0:12:49]} 15. axb5 {[%emt 0:17:32]} axb5 {[%emt 0:00:10]} 16. dxe5 {[%emt 0:02:28]} dxe5 {[%emt 0:00:46]} 17. Bxb6 {[%emt 0:00:38]} cxb6 {[%emt 0:00:05]} 18. Ne1 {[%emt 0:17:43]} Ne7 {[%emt 0:05:34]} 19. Qf3 {[%emt 0:03:23]} Qg5 {[%emt 0:03:55]} 20. Qe3 {[%emt 0:08:52]} Nxd5 {[%emt 0:03:34]} 21. exd5 {[%emt 0:00:09]} Bg4 {[%emt 0:01:14]} 22. Nc2 {[%emt 0:02:27]} Qg6 {[%emt 0:05:15]} 23. Nb4 {[%emt 0:00:18]} e4 {[%emt 0:02:46]} 24. Nc6 {[%emt 0:01:58]} Rfe8 {[%emt 0:03:27]} 25. Nd4 {[%emt 0:06:01]} Rxd5 {[%emt 0:00:39]} 26. f4 {[%emt 0:00:33]} Bf5 {[%emt 0:01:46]} 27. Ra7 {[%emt 0:00:42]} b4 {[%emt 0:01:34]} 28. Rfa1 {[%emt 0:00:36]} bxc3 {[%emt 0:00:34]} 29. bxc3 {[%emt 0:00:01]} Rd7 {[%emt 0:00:42]} 30. Rxd7 {[%emt 0:01:03]} Bxd7 {[%emt 0:00:02]} 31. Ra7 {[%emt 0:00:14]} Qd6 {[%emt 0:00:32]} 32. h3 {[%emt 0:00:28]} Qd5 {[%emt 0:01:06]} 33. c4 {[%emt 0:00:45]} Qd6 {[%emt 0:00:11]} 34. Kf2 {[%emt 0:00:33]} Re7 {[%emt 0:01:08]} 35. Ra8+ {[%emt 0:00:14]} Kh7 {[%emt 0:00:06]} 36. Nb3 {[%emt 0:00:45]} Qc6 {[%emt 0:00:50]} 37. Ra6 {[%emt 0:00:29]} Qxc4 {[%emt 0:00:11]} 38. Rxb6 {[%emt 0:00:09]} Ba4 {[%emt 0:02:02]} 39. Nc5 {[%emt 0:00:44]} Bb5 {[%emt 0:01:37]} 40. Kg1 {[%emt 0:00:37]} Kg8 {[%emt 0:03:54]} 41. Rb8+ {[%emt 0:03:20]} Kh7 {[%emt 0:00:09]} 42. h4 {[%emt 0:03:05]} Bc6 {[%emt 0:02:28]} 43. Rc8 {[%emt 0:06:12]} Bd5 {[%emt 0:01:57]} 44. Kh2 {[%emt 0:01:55]} Be6 {[%emt 0:01:20]} 45. Rd8 {[%emt 0:07:20]} Bf5 {[%emt 0:01:04]} 46. Nb3 {[%emt 0:01:58]} Bg4 {[%emt 0:10:11]} 47. Nd4 {[%emt 0:02:09]} Qd3 {[%emt 0:02:52]} 48. Ne6 {[%emt 0:04:14]} Qxe3 {[%emt 0:04:56]} 49. Nf8+ {[%emt 0:00:06]} 1/2-1/2